fUST/lending_fUST_20240905
["ID","MTS","AMOUNT","RATE_DAILY","PERIOD"]
[337172655,1725486642469,-151.0,0.00024736,7]
[337172656,1725486642482,-151.0,0.00024736,7]
[337172657,1725486642495,-151.0,0.00024736,7]
[337172658,1725486642508,-1637.501268,0.00024736,7]
[337172659,1725486642523,-1637.501268,0.00024736,7]
[337172660,1725486642535,-151.0,0.00024736,7]
[337172661,1725486642547,-151.0,0.00024736,7]
[337172662,1725486642561,-151.0,0.00024736,7]
[337172663,1725486642572,-151.0,0.00024736,7]
[337172664,1725486642586,-2890.557888,0.00024736,7]
[337172665,1725486642598,-2890.557888,0.00024736,7]
[337172666,1725486642609,-55555.0,0.00024736,3]
[337172667,1725486642620,-1283.657328,0.00024737,7]
[337172668,1725486642630,-2272.869524,0.00024737,7]
[337172669,1725486642641,-1283.657328,0.00024737,7]
[337172670,1725486642652,-2272.869524,0.00024737,7]
[337172671,1725486642663,-151.0,0.00024737,7]
[337172672,1725486642674,-151.0,0.00024737,7]
[337172673,1725486642684,-151.0,0.00024737,7]
[337172674,1725486642696,-151.0,0.00024737,7]
[337172675,1725486642707,-1637.501268,0.00024737,7]
[337172676,1725486642718,-1637.501268,0.00024737,7]
[337172677,1725486642729,-151.0,0.00024737,7]
[337172678,1725486642741,-151.0,0.00024737,7]
[337172679,1725486642752,-151.0,0.00024737,7]
[337172682,1725486642763,-151.0,0.00024737,7]
[337172686,1725486642773,-2890.557888,0.00024737,7]
[337172688,1725486642784,-2890.557888,0.00024737,7]
[337172689,1725486642794,-183582.84872313,0.0002475,2]
[337172699,1725486643578,-6095.37650977,0.0002475,2]
[337172700,1725486643589,-1283.657328,0.0002475,7]
[337172701,1725486643598,-2272.869524,0.0002475,7]
[337172702,1725486643607,-1283.657328,0.0002475,7]
[337172703,1725486643619,-2272.869524,0.0002475,7]
[337172704,1725486643628,-151.0,0.0002475,7]
[337172705,1725486643636,-151.0,0.0002475,7]
[337172706,1725486643646,-151.0,0.0002475,7]
[337172707,1725486643656,-151.0,0.0002475,7]
[337172708,1725486643666,-1637.501268,0.0002475,7]
[337172709,1725486643675,-1637.501268,0.0002475,7]
[337172710,1725486643684,-151.0,0.0002475,7]
[337172711,1725486643693,-151.0,0.0002475,7]
[337172712,1725486643704,-151.0,0.0002475,7]
[337172713,1725486643714,-151.0,0.0002475,7]
[337172714,1725486643725,-2890.557888,0.0002475,7]
[337172715,1725486643736,-2890.557888,0.0002475,7]
[337172716,1725486643748,-6540.71767479,0.00024785,2]
[337172717,1725486643757,-151.0,0.00024827,7]
[337172718,1725486643767,-151.0,0.00024827,7]
[337172719,1725486643776,-151.0,0.00024838,7]
[337172720,1725486643785,-151.0,0.00024847,7]
[337172721,1725486643794,-151.0,0.00024847,7]
[337172722,1725486643803,-1000.0,0.00024856,2]
[337172723,1725486643812,-1000.0,0.00024856,3]
[337172724,1725486643822,-151.619,0.00024861,2]
[337172725,1725486643831,-523.0,0.00024861,2]
[337172726,1725486643841,-306.013,0.00024861,2]
[337172727,1725486643851,-150.223,0.00024861,2]
[337172728,1725486643860,-150.216,0.00024861,2]
[337172729,1725486643869,-1947.31952747,0.00024885,2]
[337172730,1725486643878,-153.0,0.000249,2]
[337172731,1725486643887,-153.0,0.000249,2]
[337172732,1725486643896,-3000.0,0.000249,2]
[337172733,1725486643905,-155.0,0.0002491,12]
[337172734,1725486643914,-3000.0,0.0002491,2]
[337172735,1725486643924,-6870.17630797,0.00024912,2]
[337172736,1725486643933,-3000.0,0.0002492,2]
[337172738,1725486643942,-500.0,0.00024922,15]
[337172739,1725486643953,-541.67834577,0.00024922,15]
[337172740,1725486643962,-3000.0,0.0002493,2]
[337172741,1725486643972,-151.0,0.00024932,7]
[337172742,1725486643981,-1283.657328,0.00024932,7]
[337172743,1725486643990,-2272.869524,0.00024932,7]
[337172744,1725486644000,-1283.657328,0.00024932,7]
[337172745,1725486644009,-2272.869524,0.00024932,7]
[337172746,1725486644018,-151.0,0.00024932,7]
[337172747,1725486644027,-151.0,0.00024932,7]
[337172748,1725486644036,-151.0,0.00024932,7]
[337172749,1725486644045,-151.0,0.00024932,7]
[337172750,1725486644055,-3000.0,0.0002494,2]
[337172751,1725486644064,-3000.0,0.0002495,2]
[337172752,1725486644073,-3000.0,0.0002496,2]
[337172753,1725486644083,-1637.501268,0.0002496,7]
[337172754,1725486644092,-1637.501268,0.0002496,7]
[337172755,1725486644102,-3000.0,0.0002497,2]
[337172756,1725486644113,-151.0,0.0002497,7]
[337172757,1725486644124,-151.0,0.0002497,7]
[337172758,1725486644137,-151.0,0.0002497,7]
[337172759,1725486644147,-151.0,0.0002497,7]
[337172760,1725486644156,-2890.557888,0.0002497,7]
[337172761,1725486644166,-2890.557888,0.0002497,7]
[337172762,1725486644175,-500.0,0.00024973,2]
[337172763,1725486644185,-500.0,0.00024973,2]
[337172764,1725486644195,-202.98794253,0.00024973,2]
[337172765,1725486644206,-190.70392364,0.00024973,2]
[337172766,1725486644216,-255.0334715,0.00024973,2]
[337172767,1725486644227,-500.0,0.00024973,2]
[337172768,1725486644238,-500.0,0.00024973,2]
[337172769,1725486644250,-500.0,0.00024973,2]
[337172770,1725486644261,-505.69942342,0.00024973,2]
[337172771,1725486644273,-150.01,0.00024979,2]
[337172772,1725486644285,-4029.74535596,0.00024979,2]
[337172773,1725486644296,-3000.0,0.0002498,2]
[337172774,1725486644306,-3000.0,0.0002499,2]
[337172775,1725486644318,-6710.1234283,0.00025,2]
[337172776,1725486644327,-10364.0,0.00025,2]
[337172777,1725486644338,-135170.54,0.00025,14]
[337172778,1725486644349,-150.0,0.00025,2]
[337172779,1725486644359,-3346.57422004,0.00025,7]
[337172780,1725486644369,-1000.0,0.00025,5]
[337172781,1725486644378,-154.73006932,0.00025,2]
[337172782,1725486644391,-2475.2287739,0.00025,2]
[337172783,1725486644419,-500.0,0.00024973,2]
[337172784,1725486644429,-500.0,0.00024973,2]
[337172785,1725486644439,-4766.22650001,0.00025,2]
[337172786,1725486644455,-195082.2413479,0.00025,2]
[337172787,1725486644467,-199983.16634861,0.00025,2]
[337172788,1725486644496,-320.1208537,0.0002388,2]
[337172789,1725486644509,-679.8791463,0.0002388,2]
[337172790,1725486644518,-48434.8329013,0.00025,2]
[337172796,1725486646174,-235.480742,0.00023921,2]
[337172797,1725486646184,-235.480742,0.00023987,2]
[337172798,1725486646193,-49.468811,0.00024053,2]
[337172799,1725486646244,-186.011931,0.00024053,2]
[337172800,1725486646254,-153.0,0.0002411,2]
[337172801,1725486646263,-235.480742,0.00024118,2]
[337172802,1725486646273,-235.480742,0.00024184,2]
[337172803,1725486646283,-235.480742,0.0002425,2]
[337172804,1725486646292,-235.480742,0.00024315,2]
[337172805,1725486646302,-235.480742,0.00024381,2]
[337172806,1725486646311,-235.480742,0.00024446,2]
[337172807,1725486646321,-235.480742,0.00024512,2]
[337172808,1725486646331,-150.908,0.00024861,2]
[337172809,1725486646341,-6649.75636067,0.00025,2]
[337172810,1725486646353,-2039.82286284,0.00025,2]
[337172811,1725486646366,-4079.85030908,0.00025,2]
[337172949,1725487842699,-168.20053,0.00022913,2]
[337172950,1725487842710,-300.0,0.00022955,2]
[337172951,1725487842720,-503.79947,0.00022956,2]
[337172952,1725487842757,-24396.20053,0.00022956,2]
[337172953,1725487842767,-168.20053,0.00023005,2]
[337172954,1725487842777,-168.20053,0.00023097,2]
[337172955,1725487842786,-168.20053,0.00023189,2]
[337172956,1725487842795,-168.20053,0.00023281,2]
[337172957,1725487842804,-168.20053,0.00023373,2]
[337172958,1725487842814,-168.20053,0.00023464,2]
[337172960,1725487842823,-168.20053,0.00023556,2]
[337172962,1725487842833,-168.20053,0.00023648,2]
[337172964,1725487842842,-1048.03036105,0.00023663,2]
[337172966,1725487842852,-192.41243596,0.00023673,2]
[337172967,1725487842862,-168.20053,0.0002374,2]
[337172968,1725487842871,-396.3909483,0.00023741,2]
[337172970,1725487842881,-466.04207307,0.00023755,2]
[337172971,1725487842890,-168.20053,0.00023832,2]
[337172973,1725487842901,-153.0,0.00023878,2]
[337172974,1725487842911,-153.0,0.00023878,2]
[337172975,1725487842920,-153.0,0.00023878,2]
[337172976,1725487842929,-168.20053,0.00023924,2]
[337172977,1725487842938,-1000.0,0.00024,2]
[337172978,1725487842949,-168.20053,0.00024015,2]
[337172979,1725487842958,-168.20053,0.00024107,2]
[337172980,1725487842967,-153.0,0.00024178,2]
[337172981,1725487842977,-153.0,0.00024192,2]
[337172982,1725487842986,-208.0725932,0.00024192,2]
[337172983,1725487842997,-153.0,0.00024192,2]
[337172984,1725487843006,-153.0,0.00024192,2]
[337172986,1725487843015,-208.0725932,0.00024192,2]
[337172988,1725487843025,-153.0,0.00024192,2]
[337172990,1725487843034,-208.0725932,0.00024192,2]
[337172992,1725487843045,-208.0725932,0.00024192,2]
[337172994,1725487843055,-442.5469175,0.00024192,2]
[337172995,1725487843067,-153.0,0.00024192,2]
[337172996,1725487843076,-153.0,0.00024192,2]
[337172997,1725487843089,-208.0725932,0.00024192,2]
[337172998,1725487843099,-153.0,0.00024192,2]
[337172999,1725487843110,-208.0725932,0.00024192,2]
[337173000,1725487843121,-208.0725932,0.00024192,2]
[337173001,1725487843131,-153.0,0.00024192,2]
[337173002,1725487843143,-208.0725932,0.00024192,2]
[337173003,1725487843153,-153.0,0.00024192,2]
[337173004,1725487843164,-153.0,0.00024192,2]
[337173005,1725487843175,-208.0725932,0.00024192,2]
[337173006,1725487843187,-208.0725932,0.00024192,2]
[337173007,1725487843197,-153.0,0.00024192,2]
[337173008,1725487843209,-306.0,0.00024192,2]
[337173009,1725487843220,-208.0725932,0.00024192,2]
[337173010,1725487843231,-208.0725932,0.00024192,2]
[337173011,1725487843242,-208.0725932,0.00024192,2]
[337173012,1725487843255,-208.0725932,0.00024192,2]
[337173013,1725487843265,-208.0725932,0.00024192,2]
[337173014,1725487843277,-324.0304349,0.00024192,2]
[337173015,1725487843287,-153.0,0.00024436,2]
[337173016,1725487843298,-153.0,0.00024436,2]
[337173017,1725487843308,-153.0,0.000245,2]
[337173018,1725487843318,-1000.0,0.000245,5]
[337173020,1725487843327,-1012.96631504,0.00024626,2]
[337173021,1725487843338,-539.874255,0.00024658,2]
[337173022,1725487843347,-1000.0,0.0002473,2]
[337173023,1725487843357,-12677.79,0.00024809,3]
[337173024,1725487843366,-10564.82,0.00024809,3]
[337173025,1725487843375,-951.85,0.0002481,3]
[337173026,1725487843384,-475.92,0.0002481,3]
[337173027,1725487843393,-237.96,0.0002481,3]
[337173028,1725487843403,-713.91,0.0002481,3]
[337173029,1725487843412,-436.85607009,0.00024818,2]
[337173030,1725487843421,-500.0,0.00024818,2]
[337173031,1725487843430,-500.0,0.00024818,2]
[337173032,1725487843439,-500.0,0.00024818,2]
[337173033,1725487843450,-500.0,0.00024818,2]
[337173034,1725487843463,-500.0,0.00024818,2]
[337173036,1725487843475,-500.0,0.00024818,2]
[337173038,1725487843486,-500.0,0.00024818,2]
[337173040,1725487843500,-500.0,0.00024818,2]
[337173041,1725487843509,-500.0,0.00024818,2]
[337173042,1725487843519,-500.0,0.00024818,2]
[337173043,1725487843528,-500.0,0.00024818,2]
[337173044,1725487843538,-368.62942885,0.00024818,2]
[337173045,1725487843547,-500.0,0.00024818,2]
[337173046,1725487843556,-500.0,0.00024818,2]
[337173047,1725487843565,-544.25287133,0.00024818,2]
[337173048,1725487843575,-456.79128008,0.00024818,2]
[337173049,1725487843584,-199.2170308,0.00024819,2]
[337173050,1725487843593,-500.0,0.00024819,2]
[337173051,1725487843602,-500.0,0.00024819,2]
[337173052,1725487843612,-577.38729242,0.00024819,2]
[337173053,1725487843621,-500.0,0.00024819,2]
[337173054,1725487843631,-500.0,0.00024819,2]
[337173055,1725487843641,-500.0,0.00024819,2]
[337173056,1725487843652,-500.0,0.00024819,2]
[337173057,1725487843662,-500.0,0.00024819,2]
[337173058,1725487843672,-500.0,0.00024819,2]
[337173059,1725487843682,-363.61022701,0.00024819,2]
[337173060,1725487843692,-616.65934399,0.00024819,2]
[337173061,1725487843703,-500.0,0.00024819,2]
[337173062,1725487843713,-500.0,0.00024819,2]
[337173063,1725487843723,-169912.701628,0.00024819,3]
[337173064,1725487843733,-145643.25322402,0.0002482,3]
[337173065,1725487843748,-15999.61000001,0.0002482,3]
[337173066,1725487843770,-8269.83840397,0.0002482,3]
[337173067,1725487843780,-12576.72740397,0.0002482,3]
[337173068,1725487843792,-1791.89,0.0002482,3]
[337173069,1725487843804,-499.78027732,0.0002482,3]
[337173074,1725487923866,154.0,0.00027,120]
[337173083,1725488732364,4063.374,0.000203,2]
[337173100,1725488807146,-164.844304,0.00021043,2]
[337173101,1725488807172,-63.04104028,0.00021691,2]
[337173102,1725488832266,2936.626,0.000203,2]
[337173103,1725488863007,7063.374,0.000201,2]
[337173141,1725489032600,-582.85,0.00020911,2]
[337173288,1725489038955,-24317.15,0.00020911,2]
[337173290,1725489038965,-163.536987,0.00021576,2]
[337173292,1725489038974,-163.536987,0.0002165,2]
[337173294,1725489038984,-94.77231472,0.00021691,2]
[337173297,1725489038995,-163.536987,0.00021725,2]
[337173299,1725489039004,-163.536987,0.000218,2]
[337173300,1725489039013,-163.536987,0.00021875,2]
[337173302,1725489039023,-163.536987,0.0002195,2]
[337173304,1725489039033,-302.36509981,0.00022,2]
[337173306,1725489039042,-1048.03036105,0.00022009,2]
[337173308,1725489039052,-300.0,0.00022018,2]
[337173311,1725489039063,-2734.37931267,0.00022019,2]
[337173313,1725489039073,-163.536987,0.00022025,2]
[337173315,1725489039083,-163.536987,0.000221,2]
[337173317,1725489039092,-163.536987,0.00022175,2]
[337173319,1725489039101,-1571.67947927,0.0002222,2]
[337173321,1725489039110,-302.36509981,0.0002222,2]
[337173323,1725489039119,-163.536987,0.0002225,2]
[337173325,1725489039128,-163.536987,0.00022325,2]
[337173327,1725489039139,-163.536987,0.000224,2]
[337173329,1725489039148,-302.36509981,0.0002244,2]
[337173331,1725489039158,-163.536987,0.00022475,2]
[337173333,1725489039167,-163.536987,0.0002255,2]
[337173335,1725489039176,-163.536987,0.00022625,2]
[337173341,1725489039468,-500.0,0.00022659,2]
[337173342,1725489039490,-500.0,0.00022659,2]
[337173343,1725489039502,-500.0,0.00022659,2]
[337173344,1725489039513,-500.0,0.00022659,2]
[337173345,1725489039523,-1186.92,0.00022659,2]
[337173346,1725489039535,-500.0,0.00022659,2]
[337173347,1725489039545,-500.0,0.00022659,2]
[337173348,1725489039557,-500.0,0.00022659,2]
[337173349,1725489039572,-586.43,0.00022659,2]
[337173350,1725489039589,-500.0,0.00022659,2]
[337173351,1725489039600,-356.50359705,0.00022659,2]
[337173352,1725489039610,-302.36509981,0.0002266,2]
[337173353,1725489039622,-163.536987,0.000227,2]
[337173354,1725489039635,-302.36509981,0.0002288,2]
[337173355,1725489039644,-1012.96631504,0.00022909,2]
[337173356,1725489039656,-500.0,0.00022933,2]
[337173357,1725489039665,-504.36539858,0.00022933,2]
[337173358,1725489039676,-173.42931369,0.00022933,2]
[337173359,1725489039686,-500.0,0.00022933,2]
[337173360,1725489039697,-1186.92,0.00022933,2]
[337173361,1725489039709,-500.0,0.00022933,2]
[337173362,1725489039720,-502.61315908,0.00022933,2]
[337173363,1725489039731,-500.0,0.00022933,2]
[337173364,1725489039742,-500.0,0.00022933,2]
[337173365,1725489039753,-1000.0,0.00022957,2]
[337173366,1725489039763,-453.54764972,0.000231,4]
[337173367,1725489039774,-951.85,0.00023139,3]
[337173368,1725489039786,-781.3,0.00023148,2]
[337173369,1725489039797,-500.0,0.00023148,2]
[337173370,1725489039807,-1910.34047993,0.00023148,2]
[337173371,1725489039819,-7129.64952007,0.00023148,2]
[337173372,1725489039830,-3551.01,0.00023148,2]
[337173373,1725489039839,-1154.98,0.00023148,2]
[337173374,1725489039849,-1302.33,0.00023148,2]
[337173375,1725489039858,-500.0,0.00023148,2]
[337173376,1725489039868,-1098.65,0.00023148,2]
[337173377,1725489039878,-504.89,0.00023148,2]
[337173378,1725489039888,-3178.49047993,0.00023148,2]
[337173379,1725489039903,-3348.19952007,0.00023148,2]
[337173380,1725489039913,-1523.99,0.00023148,2]
[337173381,1725489039923,-1642.09,0.00023148,2]
[337173382,1725489039936,-586.43,0.00023148,2]
[337173383,1725489039947,-787.78,0.00023148,2]
[337173384,1725489039958,-500.0,0.00023149,2]
[337173385,1725489039968,-8758.39,0.00023149,2]
[337173386,1725489039978,-4199.6,0.00023149,2]
[337173387,1725489039987,-2314.44,0.00023149,2]
[337173388,1725489039998,-500.0,0.00023149,2]
[337173389,1725489040009,-1430.94,0.00023149,2]
[337173390,1725489040019,-3652.5,0.00023149,2]
[337173391,1725489040030,-509.6,0.00023149,2]
[337173392,1725489040041,-501.27338197,0.00023149,2]
[337173393,1725489040052,-295.4982113,0.00023149,2]
[337173394,1725489040062,-8396.46991427,0.00023149,2]
[337173395,1725489040079,-1180.06008573,0.00023149,2]
[337173396,1725489040088,-1449.57,0.00023149,2]
[337173397,1725489040098,-5060.31,0.00023149,2]
[337173398,1725489040108,-1953.67,0.00023149,2]
[337173400,1725489040118,-502.80919968,0.00023149,2]
[337173401,1725489040128,-500.0,0.00023149,2]
[337173403,1725489040139,-1085.18,0.00023149,2]
[337173404,1725489040149,-651.36,0.00023149,2]
[337173405,1725489040159,-1500.0,0.0002315,2]
[337173406,1725489040170,-500.0,0.00023207,2]
[337173407,1725489040180,-500.0,0.00023207,2]
[337173409,1725489040192,-1186.92,0.00023207,2]
[337173410,1725489040204,-500.0,0.00023207,2]
[337173411,1725489040214,-500.0,0.00023207,2]
[337173412,1725489040224,-500.0,0.00023207,2]
[337173413,1725489040236,-453.54764972,0.0002332,4]
[337173414,1725489040246,-2549.01140176,0.00023322,2]
[337173415,1725489040256,-586.43,0.00023412,2]
[337173416,1725489040265,-586.43,0.00023412,2]
[337173418,1725489040274,-586.43,0.00023412,2]
[337173420,1725489040286,-586.43,0.00023412,2]
[337173422,1725489040297,-436.85607009,0.00023412,2]
[337173424,1725489040308,-500.0,0.00023412,2]
[337173426,1725489040318,-500.0,0.00023412,2]
[337173428,1725489040327,-500.0,0.00023412,2]
[337173430,1725489040337,-500.0,0.00023412,2]
[337173431,1725489040346,-500.0,0.00023412,2]
[337173432,1725489040356,-456.79128008,0.00023412,2]
[337173433,1725489040365,-176859.936515,0.00023413,3]
[337173434,1725489040374,-781.3,0.00023422,2]
[337173435,1725489040385,-9039.99,0.00023422,2]
[337173436,1725489040395,-3551.01,0.00023422,2]
[337173437,1725489040405,-1154.98,0.00023422,2]
[337173438,1725489040415,-1302.33,0.00023422,2]
[337173439,1725489040425,-500.0,0.00023422,2]
[337173440,1725489040434,-1098.65,0.00023422,2]
[337173441,1725489040446,-504.89,0.00023422,2]
[337173442,1725489040458,-6526.69,0.00023422,2]
[337173445,1725489040470,-1523.99,0.00023422,2]
[337173446,1725489040480,-1642.09,0.00023422,2]
[337173449,1725489040490,-586.43,0.00023422,2]
[337173450,1725489040501,-787.78,0.00023422,2]
[337173452,1725489040510,-487.40499746,0.00023423,2]
[337173455,1725489040520,-8758.39,0.00023423,2]
[337173457,1725489040529,-4199.6,0.00023423,2]
[337173459,1725489040538,-2314.44,0.00023423,2]
[337173461,1725489040549,-500.0,0.00023423,2]
[337173463,1725489040558,-1430.94,0.00023423,2]
[337173465,1725489040567,-3652.5,0.00023423,2]
[337173467,1725489040577,-509.6,0.00023423,2]
[337173468,1725489040586,-3092.05738996,0.00023423,2]
[337173469,1725489040600,-405.85748006,0.00023423,2]
[337173478,1725489040859,-475.92,0.00023139,3]
[337173480,1725489040868,-3821.37627103,0.00023423,2]
[337173482,1725489040880,-2257.23885895,0.00023423,2]
[337173484,1725489040889,-1449.57,0.00023423,2]
[337173486,1725489040900,-5060.31,0.00023423,2]
[337173489,1725489040909,-1953.67,0.00023423,2]
[337173491,1725489040919,-500.0,0.00023423,2]
[337173493,1725489040928,-1085.18,0.00023423,2]
[337173495,1725489040938,-651.36,0.00023423,2]
[337173497,1725489040949,-2549.01140172,0.00023436,2]
[337173499,1725489040958,-500.0,0.00023481,2]
[337173501,1725489040968,-500.0,0.00023481,2]
[337173503,1725489040977,-1186.92,0.00023481,2]
[337173505,1725489040986,-640.95055076,0.00023481,2]
[337173507,1725489040996,-500.0,0.00023481,2]
[337173509,1725489041005,-500.0,0.00023481,2]
[337173511,1725489041015,-301.30970768,0.0002354,4]
[337173513,1725489041024,-2549.01140172,0.00023551,2]
[337173515,1725489041034,-199.2170308,0.00023637,2]
[337173517,1725489041043,-363.61022701,0.00023637,2]
[337173519,1725489041052,-500.0,0.00023637,2]
[337173521,1725489041062,-500.0,0.00023637,2]
[337173523,1725489041071,-500.0,0.00023637,2]
[337173525,1725489041082,-500.0,0.00023637,2]
[337173527,1725489041091,-616.65934399,0.00023637,2]
[337173529,1725489041101,-500.0,0.00023637,2]
[337173531,1725489041111,-500.0,0.00023637,2]
[337173533,1725489041121,-500.0,0.00023637,2]
[337173535,1725489041130,-500.0,0.00023637,2]
[337173537,1725489041140,-577.38729242,0.00023637,2]
[337173539,1725489041149,-450.0,0.00023637,2]
[337173541,1725489041159,-586.43,0.00023637,2]
[337173543,1725489041168,-586.43,0.00023637,2]
[337173545,1725489041177,-586.43,0.00023637,2]
[337173547,1725489041186,-586.43,0.00023637,2]
[337173549,1725489041197,-586.43,0.00023637,2]
[337173551,1725489041206,-176859.936515,0.00023638,3]
[337173553,1725489041216,-1000.0,0.00023639,2]
[337173555,1725489041226,-7312.31,0.00023648,2]
[337173557,1725489041235,-1657.26,0.00023648,2]
[337173559,1725489041244,-500.0,0.00023648,2]
[337173561,1725489041254,-2416.84,0.00023648,2]
[337173563,1725489041263,-500.0,0.00023648,2]
[337173565,1725489041273,-500.0,0.00023648,2]
[337173568,1725489041285,-6947.79,0.00023648,2]
[337173570,1725489041295,-9104.15,0.00023648,2]
[337173572,1725489041305,-500.0,0.00023648,2]
[337173574,1725489041316,-565.48,0.00023648,2]
[337173576,1725489041327,-1014.45,0.00023648,2]
[337173578,1725489041337,-500.0,0.00023648,2]
[337173580,1725489041346,-500.0,0.00023648,2]
[337173582,1725489041357,-500.0,0.00023648,2]
[337173584,1725489041368,-586.43,0.00023653,2]
[337173587,1725489041379,-2549.01140172,0.00023665,2]
[337173589,1725489041390,-306.0,0.00023678,2]
[337173591,1725489041400,-586.43,0.00023686,2]
[337173593,1725489041410,-586.43,0.00023686,2]
[337173595,1725489041420,-586.43,0.00023686,2]
[337173597,1725489041431,-586.43,0.00023686,2]
[337173599,1725489041441,-124542.66419364,0.00023687,3]
[337173809,1725489043581,-25.32059381,0.00023687,3]
[337173811,1725489043593,-1588.95344766,0.00023687,3]
[337173814,1725489043605,-466.66475086,0.00023687,3]
[337173912,1725489046617,-809.51,0.00023149,2]
[337173915,1725489046629,-809.51,0.00023423,2]
[337173917,1725489046641,-134.57613248,0.00023648,2]
[337174113,1725489588095,10000.0,0.000201,2]
[337174219,1725490237973,-300.0,0.00021023,2]
[337174221,1725490237983,-17621.08607968,0.00021024,2]
[337174224,1725490237996,-7278.91392032,0.00021024,2]
[337174227,1725490238005,-163.889783,0.00021458,2]
[337174231,1725490238014,-163.889783,0.00021831,2]
[337174235,1725490238024,-157.813356,0.00022035,2]
[337174238,1725490238033,-163.889783,0.00022204,2]
[337174241,1725490238044,-2549.01140176,0.00022549,2]
[337174243,1725490238054,-2549.01140172,0.00022551,2]
[337174245,1725490238063,-2549.01140172,0.00022553,2]
[337174247,1725490238073,-2549.01140172,0.00022555,2]
[337174249,1725490238083,-2549.01140172,0.00022557,2]
[337174251,1725490238091,-163.889783,0.00022576,2]
[337174253,1725490238104,-150.112233,0.000226,4]
[337174255,1725490238114,-150.112233,0.000226,2]
[337174257,1725490238125,-150.112233,0.000226,2]
[337174259,1725490238135,-150.112233,0.000226,4]
[337174261,1725490238147,-150.112233,0.000226,5]
[337174263,1725490238157,-150.112233,0.000226,3]
[337174265,1725490238166,-150.112233,0.000226,4]
[337174267,1725490238177,-150.112233,0.000226,4]
[337174269,1725490238188,-150.112233,0.000226,5]
[337174271,1725490238198,-150.112233,0.000226,5]
[337174274,1725490238209,-150.112233,0.000226,5]
[337174276,1725490238219,-150.112233,0.000226,3]
[337174278,1725490238230,-150.112233,0.000226,3]
[337174280,1725490238240,-150.112233,0.000226,5]
[337174282,1725490238250,-150.112233,0.000226,5]
[337174284,1725490238260,-150.112233,0.000226,3]
[337174286,1725490238271,-150.112233,0.000226,2]
[337174288,1725490238281,-1272.5,0.00022629,3]
[337174290,1725490238290,-636.25,0.00022629,3]
[337174292,1725490238300,-318.12,0.00022629,3]
[337174294,1725490238311,-159.06,0.00022629,3]
[337174296,1725490238321,-477.22,0.00022629,3]
[337174298,1725490238331,-190.37,0.00022629,3]
[337174300,1725490238340,-571.15,0.00022629,3]
[337174302,1725490238350,-500.0,0.00022638,2]
[337174304,1725490238360,-199.2170308,0.00022638,2]
[337174306,1725490238370,-500.0,0.00022638,2]
[337174308,1725490238382,-500.0,0.00022638,2]
[337174310,1725490238391,-363.61022701,0.00022638,2]
[337174313,1725490238403,-500.0,0.00022638,2]
[337174315,1725490238412,-577.38729242,0.00022638,2]
[337174317,1725490238421,-500.0,0.00022638,2]
[337174319,1725490238431,-500.0,0.00022638,2]
[337174321,1725490238442,-500.0,0.00022638,2]
[337174323,1725490238453,-500.0,0.00022638,2]
[337174325,1725490238463,-500.0,0.00022638,2]
[337174327,1725490238475,-500.0,0.00022638,2]
[337174329,1725490238487,-500.0,0.00022638,2]
[337174331,1725490238496,-500.0,0.00022638,2]
[337174334,1725490238506,-500.0,0.00022638,2]
[337174336,1725490238516,-500.0,0.00022638,2]